fUST/lending_fUST_20240831
["ID","MTS","AMOUNT","RATE_DAILY","PERIOD"]
[336715717,1725060647153,-500.0,0.00032876,31]
[336715718,1725060647163,-500.0,0.00032876,31]
[336715719,1725060647174,-500.0,0.00032876,31]
[336715720,1725060647184,-500.98058033,0.00032876,31]
[336715721,1725060647193,-494.0148376,0.00032876,31]
[336715722,1725060647203,-282.32068133,0.00032876,31]
[336715724,1725060702551,158.978905,0.00014247,2]
[336715725,1725060702784,158.978905,0.00025405,2]
[336715756,1725061500533,-166.433453,0.0001863,2]
[336715758,1725061557165,-253.86402005,0.000299,2]
[336715759,1725061557192,-115.17182487,0.00029999,2]
[336715760,1725061641089,-185.0,0.00029999,2]
[336715761,1725061641112,-300.0,0.00029999,2]
[336715762,1725061641132,-151.0,0.0003,120]
[336715763,1725061641152,-169.0,0.0003,2]
[336715764,1725061641173,-10000.0,0.0003,5]
[336715765,1725061641194,-162.331422,0.00030003,2]
[336715766,1725061641217,-215.484801,0.0003048,2]
[336715767,1725061641240,-10000.0,0.00032,10]
[336715768,1725061641262,-316.8898445,0.00032027,2]
[336715769,1725061641283,-306.0,0.00032078,2]
[336715770,1725061641309,-420.0,0.00032332,2]
[336715771,1725061641330,-500.0,0.00032563,7]
[336715772,1725061641350,-151.0,0.00032609,7]
[336715773,1725061641370,-153.0,0.00032685,2]
[336715774,1725061641393,-2188.448451,0.00032756,2]
[336715775,1725061641414,-2000.0,0.00032766,2]
[336715776,1725061641434,-12915.543208,0.00032776,120]
[336715777,1725061641456,-1695.13732809,0.00032776,2]
[336715778,1725061641479,-2723.99827979,0.00032776,2]
[336715779,1725061651157,-339.74885585,0.00032776,2]
[336715783,1725061752099,-1000.0,0.00025,2]
[336715900,1725061838388,-324.98446632,0.00032775,2]
[336715902,1725061838398,-324.98446629,0.00032775,2]
[336715904,1725061838408,-324.98446629,0.00032776,2]
[336715906,1725061838418,-324.98446629,0.00032776,2]
[336715908,1725061838428,-1525.62359529,0.00032776,2]
[336715910,1725061838438,-324.98446629,0.00032776,2]
[336715912,1725061838448,-593.02,0.00032856,3]
[336715914,1725061838457,-494.19,0.00032856,3]
[336715916,1725061838467,-411.82,0.00032856,3]
[336715918,1725061838477,-219.45084332,0.00032864,2]
[336715920,1725061838488,-5014.69550716,0.00032864,2]
[336715922,1725061838498,-3914.32249855,0.00032866,4]
[336716046,1725061840395,-368.1,0.00032856,3]
[336716048,1725061840404,-11069.25393788,0.00032866,4]
[336716056,1725061840599,-4950.31481493,0.00032866,4]
[336716279,1725061843290,-6227.6057191,0.00032866,4]
[336716280,1725061843452,-41.00398277,0.00032866,4]
[336716283,1725061843465,-1465.07009517,0.00032866,4]
[336716288,1725061843495,-1097.78188468,0.00032866,4]
[336716374,1725061846075,297.61616277,0.00025,10]
[336716375,1725061846096,693.01383723,0.00025,10]
[336716376,1725061846496,-3745.87788747,0.00032866,4]
[336716762,1725061888333,158.978905,0.00014247,2]
[336716763,1725061888542,158.978905,0.00027884,2]
[336716796,1725062153099,-166.433453,0.0001863,2]
[336716844,1725062718875,-166.433453,0.0001863,2]
[336716848,1725062759155,-178.96817879,0.000259,2]
[336716852,1725062908990,158.978905,0.00014247,2]
[336716855,1725062965152,-1000.0,0.00026,12]
[336716856,1725062965176,-300.0,0.00028858,2]
[336716857,1725062965197,-300.0,0.00028858,2]
[336716858,1725062965218,-15693.22896,0.00028859,2]
[336716889,1725062968117,-8270.5109232,0.00028859,2]
[336716946,1725063032344,-200.0,0.00031407,120]
[336716948,1725063032354,-158.978905,0.00031781,2]
[336716951,1725063032364,-153.0,0.00032384,2]
[336716953,1725063032373,-153.0,0.00032384,2]
[336716955,1725063032383,-306.0,0.00032384,2]
[336716957,1725063032392,-153.0,0.00032384,2]
[336716960,1725063032402,-123.23380639,0.00032766,2]
[336716991,1725063038621,-5907.4478355,0.00032766,2]
[336716993,1725063038630,-304.25994049,0.00032776,2]
[336716995,1725063038639,-1373.06123577,0.00032776,2]
[336716997,1725063038649,-182.64,0.00032846,3]
[336716999,1725063038659,-312.74,0.00032846,3]
[336717002,1725063038670,-260.62,0.00032846,3]
[336717003,1725063038680,-199.71175805,0.00032855,5]
[336717005,1725063038690,-207767.476243,0.00032856,4]
[336717006,1725063038699,-83106.9904973,0.00032866,4]
[336717007,1725063038709,-425.57618318,0.00032875,2]
[336717008,1725063038718,-590.46612082,0.00032876,5]
[336717009,1725063038728,-151.0,0.00032876,7]
[336717010,1725063038738,-188.34866886,0.00032876,31]
[336717011,1725063038749,-500.0,0.00032876,31]
[336717012,1725063038759,-500.93089011,0.00032876,31]
[336717013,1725063038769,-500.0,0.00032876,31]
[336717014,1725063038779,-500.0,0.00032876,30]
[336717015,1725063038789,-500.0,0.00032876,31]
[336717016,1725063038800,-500.0,0.00032876,31]
[336717017,1725063038812,-648.5902411,0.00032876,31]
[336717018,1725063038826,-500.0,0.00032876,31]
[336717019,1725063038837,-500.0,0.00032876,31]
[336717020,1725063039034,-500.0,0.00032876,31]
[336717021,1725063039046,-500.0,0.00032876,31]
[336717022,1725063039056,-519.45321061,0.00032876,31]
[336717023,1725063039067,-501.79442452,0.00032876,31]
[336717024,1725063039077,-500.0,0.00032876,31]
[336717025,1725063039086,-500.0,0.00032876,31]
[336717026,1725063039096,-505.9300018,0.00032876,31]
[336717027,1725063039106,-500.0,0.00032876,31]
[336717028,1725063039116,-500.0,0.00032876,31]
[336717029,1725063039125,-500.0,0.00032876,31]
[336717030,1725063039136,-500.0,0.00032876,31]
[336717031,1725063039146,-501.29806831,0.00032876,31]
[336717032,1725063039156,-500.0,0.00032876,31]
[336717033,1725063039166,-500.0,0.00032876,31]
[336717034,1725063039175,-500.0,0.00032876,31]
[336717035,1725063039185,-500.0,0.00032876,31]
[336717036,1725063039194,-500.0,0.00032876,31]
[336717037,1725063039203,-500.0,0.00032876,31]
[336717038,1725063039213,-500.0,0.00032876,31]
[336717039,1725063039222,-500.0,0.00032876,31]
[336717040,1725063039231,-500.0,0.00032876,31]
[336717041,1725063039240,-500.0,0.00032876,31]
[336717042,1725063039250,-500.0,0.00032876,31]
[336717043,1725063039260,-500.0,0.00032876,31]
[336717044,1725063039270,-500.0,0.00032876,31]
[336717045,1725063039279,-500.0,0.00032876,31]
[336717046,1725063039289,-500.0,0.00032876,31]
[336717047,1725063039299,-500.0,0.00032876,31]
[336717048,1725063039308,-500.0,0.00032876,31]
[336717049,1725063039317,-500.0,0.00032876,31]
[336717050,1725063039326,-200.26533525,0.00032876,31]
[336717051,1725063039336,-500.0,0.00032876,31]
[336717052,1725063039345,-500.0,0.00032876,31]
[336717053,1725063039354,-165.5586792,0.00032876,31]
[336717054,1725063039364,-500.0,0.00032876,31]
[336717055,1725063039373,-1610.07,0.00032876,31]
[336717056,1725063039382,-500.33208003,0.00032876,31]
[336717057,1725063039391,-505.73439015,0.00032876,31]
[336717058,1725063039400,-500.0,0.00032876,31]
[336717059,1725063039410,-164.07782288,0.00032876,31]
[336717060,1725063039420,-506.69183288,0.00032876,31]
[336717061,1725063039429,-174.04647532,0.00032876,31]
[336717062,1725063039438,-500.0,0.00032876,31]
[336717063,1725063039448,-500.0,0.00032876,31]
[336717064,1725063039457,-500.0,0.00032876,31]
[336717065,1725063039467,-500.0,0.00032876,31]
[336717066,1725063039478,-500.0,0.00032876,31]
[336717067,1725063039487,-500.0,0.00032876,31]
[336717068,1725063039498,-500.0,0.00032876,31]
[336717069,1725063039508,-500.0,0.00032876,31]
[336717070,1725063039518,-500.0,0.00032876,31]
[336717071,1725063039528,-500.0,0.00032876,31]
[336717072,1725063039538,-500.0,0.00032876,31]
[336717073,1725063039548,-500.0,0.00032876,31]
[336717074,1725063039557,-500.0,0.00032876,31]
[336717075,1725063039567,-501.28214696,0.00032876,31]
[336717076,1725063039576,-500.0,0.00032876,31]
[336717077,1725063039586,-500.0,0.00032876,31]
[336717078,1725063039595,-500.0,0.00032876,31]
[336717079,1725063039604,-500.0,0.00032876,31]
[336717080,1725063039614,-500.0,0.00032876,31]
[336717081,1725063039623,-500.0,0.00032876,31]
[336717082,1725063039633,-500.0,0.00032876,31]
[336717083,1725063039643,-500.0,0.00032876,31]
[336717084,1725063039653,-500.0,0.00032876,31]
[336717085,1725063039663,-411.67279813,0.00032876,31]
[336717089,1725063040692,-88.32720187,0.00032876,31]
[336717090,1725063040702,-500.0,0.00032876,7]
[336717091,1725063040711,-500.0,0.00032876,31]
[336717092,1725063040720,-500.0,0.00032876,31]
[336717093,1725063040730,-500.0,0.00032876,31]
[336717094,1725063040739,-500.0,0.00032876,31]
[336717095,1725063040748,-532.31678013,0.00032876,31]
[336717096,1725063040757,-500.0,0.00032876,31]
[336717097,1725063040767,-500.0,0.00032876,31]
[336717098,1725063040776,-500.0,0.00032876,31]
[336717099,1725063040785,-413.65601812,0.00032876,31]
[336717100,1725063040799,-86.34398188,0.00032876,31]
[336717101,1725063040808,-500.0,0.00032876,31]
[336717102,1725063040820,-500.0,0.00032876,31]
[336717103,1725063040831,-393.64604352,0.00032876,31]
[336717107,1725063043550,-217.18,0.00032866,3]
[336717108,1725063043560,-106.35395648,0.00032876,31]
[336717109,1725063043569,-500.0,0.00032876,31]
[336717110,1725063043579,-500.0,0.00032876,31]
[336717111,1725063043589,-500.0,0.00032876,31]
[336717112,1725063043598,-500.0,0.00032876,31]
[336717113,1725063043608,-100.8049451,0.00032876,31]
[336717114,1725063043620,-399.1950549,0.00032876,31]
[336717115,1725063043630,-36.46299955,0.00032876,31]
[336717121,1725063046483,-463.53700045,0.00032876,31]
[336717122,1725063046492,-500.0,0.00032876,31]
[336717123,1725063046502,-500.45952622,0.00032876,31]
[336717124,1725063046511,-500.0,0.00032876,31]
[336717125,1725063046520,-500.0,0.00032876,31]
[336717126,1725063046529,-500.0,0.00032876,31]
[336717127,1725063046539,-500.0,0.00032876,31]
[336717128,1725063046549,-500.0,0.00032876,31]
[336717129,1725063046558,-500.0,0.00032876,31]
[336717130,1725063046568,-500.0,0.00032876,31]
[336717131,1725063046577,-500.0,0.00032876,31]
[336717132,1725063046586,-500.0,0.00032876,31]
[336717133,1725063046595,-500.0,0.00032876,31]
[336717134,1725063046604,-500.0,0.00032876,31]
[336717135,1725063046614,-502.25706019,0.00032876,31]
[336717136,1725063046623,-500.0,0.00032876,31]
[336717137,1725063046633,-500.0,0.00032876,31]
[336717138,1725063046643,-500.0,0.00032876,31]
[336717139,1725063046653,-500.0,0.00032876,31]
[336717140,1725063046663,-500.0,0.00032876,14]
[336717141,1725063046672,-500.0,0.00032876,31]
[336717142,1725063046681,-500.0,0.00032876,31]
[336717143,1725063046691,-500.0,0.00032876,31]
[336717144,1725063046699,-500.0,0.00032876,31]
[336717145,1725063046708,-500.0,0.00032876,31]
[336717146,1725063046719,-500.0,0.00032876,31]
[336717147,1725063046728,-220.99892619,0.00032876,31]
[336717148,1725063046737,-500.89314511,0.00032876,31]
[336717149,1725063046746,-172.31597755,0.00032876,31]
[336717192,1725063936157,-166.433453,0.0001863,2]
[336717193,1725063936179,-335.787687,0.00028939,2]
[336717194,1725063936202,-160.714286,0.00029292,2]
[336717195,1725063936230,-160.714286,0.0002941,2]
[336717196,1725063936252,-160.714286,0.00029527,2]
[336717197,1725063936277,-160.714286,0.00029644,2]
[336717198,1725063936300,-160.714286,0.00029762,2]
[336717199,1725063936322,-160.714286,0.00029879,2]
[336717200,1725063936344,-50.98796188,0.00029997,2]
[336717201,1725063938755,158.978905,0.00014247,2]
[336717203,1725063955109,-256.74089314,0.00029607,2]
[336717207,1725064046161,-300.0,0.00029606,2]
[336717208,1725064046184,-300.0,0.00029606,2]
[336717209,1725064046207,-118.90019584,0.00029607,2]
[336717214,1725064119958,6523.063285,0.0001,2]
[336717215,1725064119986,5033.27698391,0.0001,2]
[336717216,1725064121424,4674.36337327,0.000129,2]
[336717217,1725064121450,10120.14509067,0.000129,2]
[336717219,1725064152093,-663.09021857,0.0002,2]
[336717220,1725064152115,-500.0,0.00026651,2]
[336717221,1725064152137,-167.893844,0.00029067,2]
[336717238,1725064232520,-645.26340212,0.00029607,2]
[336717293,1725064238897,-28.5267659,0.00029607,2]
[336717306,1725064240762,-1965.16002399,0.00029607,2]
[336717310,1725064243630,-2659.72903843,0.00029607,2]
[336717311,1725064243686,-17247.80986648,0.00029607,2]
[336717312,1725064243696,-176.389475,0.00029926,2]
[336717313,1725064243705,-500.0,0.0003,120]
[336717314,1725064243715,-176.389475,0.00030186,2]
[336717315,1725064243724,-176.389475,0.00030446,2]
[336717316,1725064243734,-176.389475,0.00030706,2]
[336717317,1725064243744,-176.389475,0.00030966,2]
[336717318,1725064243754,-176.389475,0.00031226,2]
[336717319,1725064243764,-409.5167953,0.00031479,2]
[336717320,1725064243773,-409.5167953,0.00031479,2]
[336717321,1725064243783,-409.5167953,0.00031479,2]
[336717322,1725064243793,-409.5167953,0.00031479,2]
[336717323,1725064243802,-176.389475,0.00031485,2]
[336717324,1725064243813,-409.5167953,0.00032078,2]
[336717326,1725064243823,-293.43292846,0.00032301,2]
[336717334,1725064246706,-116.08386684,0.00032301,2]
[336717335,1725064246715,-409.5167953,0.00032301,2]
[336717336,1725064246726,-36.1346534,0.00032301,2]
[336717340,1725064408701,158.978905,0.00014247,2]
[336717350,1725064948296,158.978905,0.00014247,2]
[336717356,1725065153116,-170.147949,0.0001863,2]
[336717357,1725065153138,-465.01438547,0.00025987,2]
[336717358,1725065153160,-300.0,0.00028289,2]
[336717359,1725065153182,-300.0,0.00028289,2]
[336717360,1725065153204,-4175.67309126,0.0002829,2]
[336717364,1725065345150,-1003.378759,0.00025,2]
[336717365,1725065345172,-500.0,0.00026394,2]
[336717366,1725065345193,-500.0,0.00026841,2]
[336717367,1725065345214,-300.0,0.00028289,2]
[336717368,1725065345234,-300.0,0.00028289,2]
[336717369,1725065345256,-20714.32690874,0.0002829,2]
[336717370,1725065345277,-500.0,0.000283,5]
[336717371,1725065345298,-500.0,0.000283,2]
[336717372,1725065345321,-251.840765,0.00028361,2]
[336717373,1725065345344,-200.0,0.00028855,2]
[336717374,1725065345366,-200.0,0.00028935,2]
[336717375,1725065345388,-200.0,0.00029014,2]
[336717376,1725065345410,-200.0,0.00029093,2]
[336717377,1725065345433,-200.0,0.00029172,2]
[336717378,1725065345457,-200.0,0.00029251,2]
[336717379,1725065345482,-200.0,0.0002933,2]
[336717380,1725065345505,-200.0,0.00029409,2]
[336717381,1725065345528,-200.0,0.00029489,2]
[336717382,1725065345550,-200.0,0.00029568,2]
[336717384,1725065415109,170.147949,0.0001863,2]
[336717483,1725065438032,-373.3821419,0.00030658,2]
[336717484,1725065438043,-212.61683101,0.000309,2]
[336717485,1725065438056,-1711.38569128,0.000309,2]
[336717486,1725065438065,-1000.0,0.00031,2]
[336717487,1725065438077,-1000.0,0.00031,2]
[336717488,1725065438088,-1000.0,0.00031,3]
[336717489,1725065438097,-166.666666,0.0003102,2]
[336717490,1725065438106,-166.666666,0.00031167,2]
[336717491,1725065438115,-166.666666,0.00031314,2]
[336717492,1725065438126,-166.666666,0.00031461,2]
[336717493,1725065438136,-166.666666,0.00031608,2]
[336717494,1725065438146,-166.666666,0.00031755,2]
[336717495,1725065438157,-166.666666,0.00031902,2]
[336717496,1725065438168,-409.5167953,0.00031918,2]
[336717497,1725065438178,-409.5167953,0.00031918,2]
[336717498,1725065438187,-2000.0,0.00032,2]
[336717499,1725065438197,-1608.84,0.00032,30]
[336717500,1725065438207,-166.666666,0.00032049,2]
[336717501,1725065438216,-166.666666,0.00032196,2]
[336717502,1725065438225,-409.5167953,0.00032329,2]
[336717503,1725065438235,-207.7743686,0.00032329,2]
[336717504,1725065438247,-153.0,0.00032329,2]
[336717505,1725065438257,-153.0,0.00032329,2]
[336717506,1725065438266,-409.5167953,0.00032329,2]
[336717507,1725065438276,-409.5167953,0.00032329,2]
[336717508,1725065438285,-153.0,0.00032329,2]
[336717509,1725065438294,-409.0011773,0.00032329,2]
[336717510,1725065438304,-153.0,0.00032329,2]
[336717511,1725065438313,-153.0,0.00032329,2]
[336717512,1725065438322,-166.666666,0.00032343,2]
[336717513,1725065438332,-166.666666,0.0003249,2]
[336717514,1725065438341,-166.666666,0.00032636,2]
[336717515,1725065438351,-5907.4478355,0.00032656,2]
[336717516,1725065438361,-153.0,0.00032658,2]
[336717517,1725065438370,-306.99,0.00032735,3]
[336717518,1725065438380,-255.82,0.00032735,3]
[336717519,1725065438391,-213.19,0.00032735,3]
[336717520,1725065438400,-1697.54994359,0.00032735,5]
[336717521,1725065438412,-57965.8405594,0.00032735,4]
[336717522,1725065438423,-13272.8491663,0.00032738,2]
[336717523,1725065438434,-115931.681119,0.00032746,4]
[336717524,1725065438444,-569.10193787,0.00032755,2]
[336717525,1725065438455,-88888.0,0.00032756,5]
[336717526,1725065438466,-2000.0,0.00032756,2]
[336717527,1725065438475,-57965.8405594,0.00032756,4]
[336717528,1725065438485,-230.345981,0.00032756,7]
[336717529,1725065438496,-418.306334,0.00032756,7]
[336717530,1725065438506,-418.306334,0.00032756,7]
[336717531,1725065438515,-151.0,0.00032756,7]
[336717532,1725065438525,-151.0,0.00032756,7]
[336717533,1725065438534,-178.717121,0.00032756,7]
[336717534,1725065438544,-151.0,0.00032756,7]
[336717535,1725065438554,-333.089214,0.00032756,7]
[336717536,1725065438563,-333.089214,0.00032756,7]
[336717537,1725065438573,-151.0,0.00032756,7]
[336717538,1725065438582,-151.0,0.00032756,7]
[336717539,1725065438592,-151.0,0.00032756,7]
[336717540,1725065438602,-1063.909827,0.00032756,7]
[336717541,1725065438612,-151.0,0.00032756,7]
[336717542,1725065438623,-1063.909827,0.00032756,7]
[336717543,1725065438632,-151.0,0.00032756,7]
[336717544,1725065438642,-151.0,0.00032756,7]
[336717545,1725065438652,-186.29771,0.00032756,7]
[336717546,1725065438661,-186.29771,0.00032756,7]
[336717547,1725065438671,-654.870122,0.00032756,7]
[336717548,1725065438683,-654.870122,0.00032756,7]
[336717549,1725065438692,-151.0,0.00032756,7]
[336717550,1725065438702,-151.0,0.00032756,7]
[336717551,1725065438712,-151.0,0.00032756,7]
[336717552,1725065438721,-151.0,0.00032756,7]
[336717553,1725065438731,-233.30369,0.00032756,7]
[336717554,1725065438740,-233.30369,0.00032756,7]
[336717555,1725065438750,-569.788159,0.00032756,7]
[336717556,1725065438759,-569.788159,0.00032756,7]
[336717557,1725065438768,-151.0,0.00032756,7]
[336717558,1725065438777,-237.253276,0.00032756,7]
[336717559,1725065438786,-213.462844,0.00032756,7]
[336717560,1725065438795,-237.253276,0.00032756,7]
[336717561,1725065438805,-199.478683,0.00032756,7]
[336717562,1725065438814,-199.478683,0.00032756,7]
[336717563,1725065438823,-1582.220399,0.00032756,7]
[336717564,1725065438833,-744.368728,0.00032756,7]
[336717565,1725065438841,-1582.220399,0.00032756,7]
[336717566,1725065438850,-744.368728,0.00032756,7]
[336717567,1725065438860,-151.0,0.00032756,7]
[336717568,1725065438869,-151.0,0.00032756,7]
[336717569,1725065438879,-57965.8405594,0.00032766,4]
[336717570,1725065438888,-418.306334,0.00032766,7]
[336717571,1725065438897,-418.306334,0.00032766,7]
[336717572,1725065438906,-151.0,0.00032766,7]
[336717573,1725065438915,-151.0,0.00032766,7]
[336717574,1725065438925,-333.089214,0.00032766,7]
[336717575,1725065438934,-333.089214,0.00032766,7]
[336717576,1725065438943,-151.0,0.00032766,7]
[336717577,1725065438952,-151.0,0.00032766,7]
[336717578,1725065438962,-151.0,0.00032766,7]
[336717579,1725065438971,-1063.909827,0.00032766,7]
[336717580,1725065438980,-151.0,0.00032766,7]
[336717581,1725065438990,-1063.909827,0.00032766,7]
[336717582,1725065439000,-151.0,0.00032766,7]
[336717583,1725065439010,-151.0,0.00032766,7]
[336717584,1725065439019,-186.29771,0.00032766,7]
[336717585,1725065439029,-186.29771,0.00032766,7]
[336717586,1725065439038,-654.870122,0.00032766,7]
[336717587,1725065439047,-654.870122,0.00032766,7]
[336717588,1725065439056,-151.0,0.00032766,7]
[336717589,1725065439066,-233.30369,0.00032766,7]
[336717590,1725065439077,-233.30369,0.00032766,7]
[336717591,1725065439087,-569.788159,0.00032766,7]
[336717592,1725065439097,-569.788159,0.00032766,7]
[336717593,1725065439108,-151.0,0.00032766,7]
[336717594,1725065439119,-237.253276,0.00032766,7]
[336717595,1725065439130,-237.253276,0.00032766,7]
[336717596,1725065439140,-199.478683,0.00032766,7]
[336717597,1725065439150,-199.478683,0.00032766,7]
[336717598,1725065439161,-1582.220399,0.00032766,7]
[336717599,1725065439171,-744.368728,0.00032766,7]
[336717600,1725065439181,-1582.220399,0.00032766,7]
[336717601,1725065439190,-744.368728,0.00032766,7]
[336717602,1725065439200,-151.0,0.00032766,7]
[336717603,1725065439210,-151.0,0.00032766,7]
[336717604,1725065439220,-10036.59888469,0.00032776,120]
[336717605,1725065439231,-418.306334,0.00032776,7]
[336717606,1725065439240,-418.306334,0.00032776,7]
[336717607,1725065439250,-151.0,0.00032776,7]
[336717608,1725065439261,-333.089214,0.00032776,7]
[336717609,1725065439270,-333.089214,0.00032776,7]
[336717610,1725065439281,-151.0,0.00032776,7]
[336717611,1725065439291,-1472.67272952,0.00032776,2]
[336717612,1725065439302,-569.788159,0.00032776,7]
[336717613,1725065439312,-569.788159,0.00032776,7]
[336717614,1725065439323,-151.0,0.00032776,7]
[336717615,1725065439334,-237.253276,0.00032776,7]
[336717616,1725065439344,-237.253276,0.00032776,7]
[336717617,1725065439355,-1582.220399,0.00032776,7]
[336717618,1725065439364,-744.368728,0.00032776,7]
[336717619,1725065439374,-1582.220399,0.00032776,7]
[336717620,1725065439383,-744.368728,0.00032776,7]
[336717621,1725065439393,-150.0,0.000328,13]
[336717622,1725065439402,-150.112233,0.000328,7]
[336717623,1725065439412,-150.112233,0.000328,6]
[336717624,1725065439421,-150.112233,0.000328,7]
[336717625,1725065439431,-590.46612082,0.00032855,5]
[336717626,1725065439440,-19834.41367534,0.00032856,4]
[336717650,1725065443136,-699.23687579,0.00032645,2]
[336717651,1725065443147,-699.23687577,0.00032653,2]
[336717652,1725065443160,-213.70183186,0.00032856,4]
[336717658,1725065445874,-519.40321284,0.00032661,2]
[336717659,1725065445886,-179.83366293,0.00032661,2]
[336717660,1725065445895,-699.23687577,0.00032668,2]
[336717661,1725065445904,-37917.7250522,0.00032856,4]
[336717662,1725065445914,-177.65,0.00032856,3]
[336717663,1725065445923,-151.0,0.00032856,7]
[336717664,1725065445933,-151.0,0.00032856,7]
[336717665,1725065445943,-241.201416,0.00032856,7]
[336717666,1725065445952,-575.992068,0.00032856,7]
[336717667,1725065445962,-575.992068,0.00032856,7]
[336717668,1725065445972,-151.0,0.00032856,7]
[336717669,1725065445981,-151.0,0.00032856,7]
[336717670,1725065445990,-160.0,0.00032865,10]
[336717671,1725065446000,-1000.0,0.00032865,120]
[336717672,1725065446009,-418.306334,0.00032866,7]
[336717673,1725065446018,-418.306334,0.00032866,7]
[336717674,1725065446028,-151.0,0.00032866,7]
[336717675,1725065446037,-151.0,0.00032866,7]
[336717676,1725065446046,-333.089214,0.00032866,7]
[336717677,1725065446056,-333.089214,0.00032866,7]
[336717678,1725065446065,-151.0,0.00032866,7]
[336717679,1725065446074,-151.0,0.00032866,7]
[336717680,1725065446084,-151.0,0.00032866,7]
[336717681,1725065446093,-1063.909827,0.00032866,7]
[336717682,1725065446106,-151.0,0.00032866,7]
[336717683,1725065446115,-1063.909827,0.00032866,7]
[336717684,1725065446126,-151.0,0.00032866,7]
[336717685,1725065446136,-186.29771,0.00032866,7]
[336717686,1725065446147,-186.29771,0.00032866,7]
[336717687,1725065446156,-654.870122,0.00032866,7]
[336717688,1725065446167,-654.870122,0.00032866,7]
[336717689,1725065446178,-151.0,0.00032866,7]
[336717690,1725065446187,-233.30369,0.00032866,7]
[336717691,1725065446197,-233.30369,0.00032866,7]
[336717692,1725065446206,-569.788159,0.00032866,7]
[336717693,1725065446215,-569.788159,0.00032866,7]
[336717694,1725065446224,-200.092343,0.00032866,7]
[336717695,1725065446234,-237.253276,0.00032866,7]
[336717696,1725065446244,-237.253276,0.00032866,7]
[336717697,1725065446254,-199.478683,0.00032866,7]
[336717698,1725065446263,-199.478683,0.00032866,7]
[336717699,1725065446274,-1582.220399,0.00032866,7]
[336717700,1725065446283,-744.368728,0.00032866,7]
[336717701,1725065446292,-1582.220399,0.00032866,7]
[336717702,1725065446302,-744.368728,0.00032866,7]
[336717703,1725065446311,-151.0,0.00032866,7]
[336717704,1725065446320,-2399.19759672,0.00032874,2]
[336717705,1725065446330,-500.0,0.00032876,2]
[336717706,1725065446339,-251.674874,0.00032876,7]
[336717707,1725065446349,-500.0,0.00032876,31]
[336717708,1725065446358,-503.02118907,0.00032876,31]
[336717709,1725065446368,-151.0,0.00032876,7]
[336717710,1725065446377,-502.98191272,0.00032876,31]
[336717711,1725065446388,-500.0,0.00032876,31]
[336717712,1725065446398,-151.0,0.00032876,7]
[336717713,1725065446407,-247.083083,0.00032876,7]
[336717714,1725065446418,-500.0,0.00032876,31]
[336717715,1725065446428,-500.70941265,0.00032876,31]
[336717716,1725065446438,-500.0,0.00032876,31]
[336717717,1725065446447,-500.0,0.00032876,31]
[336717718,1725065446457,-500.0,0.00032876,31]
[336717719,1725065446467,-505.9300018,0.00032876,31]
[336717720,1725065446477,-505.73439015,0.00032876,31]
[336717721,1725065446486,-500.0,0.00032876,31]
[336717722,1725065446497,-500.0,0.00032876,31]
[336717723,1725065446506,-500.0,0.00032876,31]
[336717724,1725065446516,-500.0,0.00032876,31]
[336717725,1725065446525,-501.29806831,0.00032876,31]
[336717726,1725065446535,-500.0,0.00032876,30]
[336717727,1725065446544,-209.83277342,0.00032876,31]